bitfinex/quotes_ETHUSD_20230102
["timestamp","ask_amount","ask_price","bid_price","bid_amount"]
[1672640627135,26.34572209,1204.8,1204.7,3.09633788]
[1672640629812,26.34572209,1204.8,1204.7,0.09633788]
[1672640630760,26.34572209,1204.8,1204.7,0.09368953]
[1672640632562,21.34572209,1204.8,1204.7,0.09368953]
[1672640633659,26.34572209,1204.8,1204.7,0.09368953]
[1672640634443,29.98091351,1204.8,1204.7,0.09368953]
[1672640637843,27.90491351,1204.8,1204.7,0.09368953]
[1672640640497,24.26972209,1204.8,1204.7,0.09368953]
[1672640640882,27.90491351,1204.8,1204.7,0.09368953]
[1672640643030,19.26972209,1204.8,1204.7,0.09368953]
[1672640643200,22.90491351,1204.8,1204.7,0.09368953]
[1672640643768,19.26972209,1204.8,1204.7,0.09368953]
[1672640644079,18.09134051,1204.8,1204.7,0.09368953]
[1672640644517,24.26972209,1204.8,1204.7,0.09368953]
[1672640644650,18.09134051,1204.8,1204.7,0.09368953]
[1672640644865,18.09134051,1204.8,1204.4,22.69859953]
[1672640645075,3.73193951,1204.5,1204.4,22.69859953]
[1672640645344,3.73193951,1204.5,1204.4,10.25637488]
[1672640645546,3.96193951,1204.5,1204.4,26.86213488]
[1672640645925,3.96193951,1204.5,1204.4,18.55925488]
[1672640646295,8.96193951,1204.5,1204.4,7.25637488]
[1672640646441,8.96193951,1204.5,1204.4,23.86213488]
[1672640647635,8.96193951,1204.5,1204.4,7.25637488]
[1672640647865,8.96193951,1204.5,1204.4,11.39656953]
[1672640649301,8.96193951,1204.5,1204.4,3.09368953]
[1672640650121,3.96193951,1204.5,1204.4,3.09368953]
[1672640650389,3.96193951,1204.5,1204.4,6.09368953]
[1672640650546,3.96193951,1204.5,1204.4,3.09368953]
[1672640650914,3.73193951,1204.5,1204.4,6.09019349]
[1672640651104,8.73193951,1204.5,1204.4,14.39307349]
[1672640651293,8.73193951,1204.5,1204.4,30.99883349]
[1672640652048,8.73193951,1204.5,1204.4,22.69595349]
[1672640652645,8.73193951,1204.5,1204.4,14.39307349]
[1672640654491,8.73193951,1204.5,1204.4,14.39607349]
[1672640656499,8.73193951,1204.5,1204.4,13.20910918]
[1672640657094,3.73193951,1204.5,1204.4,13.20910918]
[1672640657876,4.41992943,1204.6,1204.4,13.20910918]
[1672640658188,8.73626538,1204.5,1204.4,13.20910918]
[1672640659077,9.35392943,1204.5,1204.4,13.20910918]
[1672640659291,9.35392943,1204.5,1204.4,10.20910918]
[1672640662700,9.35392943,1204.5,1204.4,7.24205463]
[1672640664123,4.35392943,1204.5,1204.4,7.24205463]
[1672640665123,9.35392943,1204.5,1204.4,9.31805463]
[1672640667225,5.0,1204.5,1204.4,9.31805463]
[1672640667419,9.35392943,1204.5,1204.4,9.31805463]
[1672640671266,4.35392943,1204.5,1204.4,9.31805463]
[1672640672235,9.35392943,1204.5,1204.4,9.31805463]
[1672640673106,9.35392943,1204.5,1204.4,9.31522713]
[1672640673649,9.35392943,1204.5,1204.4,5.16636599]
[1672640677332,5.0,1204.5,1204.4,5.16636599]
[1672640677875,9.3629609,1204.5,1204.4,5.16636599]
[1672640678015,5.0,1204.5,1204.4,5.16636599]
[1672640678512,9.36296037,1204.5,1204.4,5.16636599]
[1672640678692,9.36254583,1204.5,1204.4,5.16636599]
[1672640679032,5.0,1204.5,1204.4,5.16636599]
[1672640679167,9.36268327,1204.5,1204.4,5.16636599]
[1672640679378,5.0,1204.5,1204.4,5.16636599]
[1672640680163,5.0,1204.5,1204.4,3.09036599]
[1672640680794,9.36232087,1204.5,1204.4,3.09036599]
[1672640681528,11.60021914,1204.5,1204.4,3.09036599]
[1672640682156,6.45714,1204.5,1204.4,3.09036599]
[1672640682979,10.81906158,1204.5,1204.4,3.09036599]
[1672640684365,9.36192158,1204.5,1204.4,3.09036599]
[1672640686720,4.36192158,1204.5,1204.4,3.09036599]
[1672640687886,9.36192158,1204.5,1204.4,3.09036599]
[1672640693779,4.36192158,1204.5,1204.4,3.09036599]
[1672640694301,4.36192158,1204.5,1204.4,2.99367646]
[1672640694970,9.36192158,1204.5,1204.4,2.99367646]
[1672640696780,9.36192158,1204.5,1204.4,2.99068417]
[1672640697342,9.36143001,1204.5,1204.4,2.99068417]
[1672640697456,10.81848093,1204.5,1204.4,2.99068417]
[1672640697673,11.83013006,1204.5,1204.4,2.99068417]
[1672640697923,10.36955519,1204.5,1204.4,2.99068417]
[1672640700615,9.58768102,1204.5,1204.4,2.99068417]
[1672640700825,0.23,1204.5,1204.4,2.99068417]
[1672640701882,10.37307914,1204.5,1204.4,2.99068417]
[1672640706722,5.23,1204.5,1204.4,2.99068417]
[1672640707186,5.8535,1204.5,1204.4,2.99068417]
[1672640707890,0.8535,1204.5,1204.4,2.99068417]
[1672640708876,10.99657914,1204.5,1204.4,2.99068417]
[1672640713601,10.37307914,1204.5,1204.4,2.99068417]
[1672640714858,5.37307914,1204.5,1204.4,2.99068417]
[1672640715841,10.37307914,1204.5,1204.4,2.99068417]
[1672640717967,10.37307914,1204.5,1204.4,2.98774209]
[1672640721932,5.37307914,1204.5,1204.4,2.98774209]
[1672640723326,10.37307914,1204.5,1204.4,2.98774209]
[1672640727041,12.09717521,1204.5,1204.4,2.98774209]
[1672640728974,10.37307914,1204.5,1204.4,2.98774209]
[1672640729331,5.37307914,1204.5,1204.4,2.98774209]
[1672640730074,10.37307914,1204.5,1204.4,2.98774209]
[1672640736160,5.37307914,1204.5,1204.4,2.98774209]
[1672640736957,10.37307914,1204.5,1204.4,2.98774209]
[1672640740429,10.37307914,1204.5,1204.4,2.9839968]
[1672640743103,5.37307914,1204.5,1204.4,2.9839968]
[1672640744153,10.37307914,1204.5,1204.4,2.9839968]
[1672640748251,9.59429214,1204.5,1204.4,2.9839968]
[1672640748923,10.37307914,1204.5,1204.4,2.9839968]
[1672640749139,5.23,1204.5,1204.4,2.9839968]
[1672640750099,9.5941349,1204.5,1204.4,2.9839968]
[1672640750319,5.23,1204.5,1204.4,2.9839968]
[1672640751236,10.37307914,1204.5,1204.4,2.9839968]
[1672640751919,5.23,1204.5,1204.4,2.9839968]
[1672640752775,9.59415598,1204.5,1204.4,2.9839968]
[1672640753072,9.59407552,1204.5,1204.4,2.9839968]
[1672640753288,9.36407552,1204.5,1204.4,2.9839968]
[1672640754339,4.36407552,1204.5,1204.4,2.9839968]
[1672640755403,9.36407552,1204.5,1204.4,2.9839968]
[1672640755964,10.14307914,1204.5,1204.4,2.9839968]
[1672640757406,15.47936663,1204.5,1204.4,2.9839968]
[1672640757620,19.45139356,1204.5,1204.3,0.09668953]
[1672640757983,14.11520607,1204.4,1204.3,0.09668953]
[1672640758120,17.75039749,1204.4,1204.3,0.09668953]
[1672640758335,16.83718543,1204.4,1204.3,0.09668953]
[1672640758804,10.65157936,1204.4,1204.3,0.09668953]
[1672640759401,15.80300365,1204.4,1204.3,0.09668953]
[1672640759864,13.72700365,1204.4,1204.3,0.09668953]
[1672640760050,8.57557936,1204.4,1204.3,0.09668953]
[1672640760239,11.00502429,1204.4,1204.3,0.09668953]
[1672640760665,5.8536,1204.4,1204.3,0.09668953]
[1672640760874,11.00502429,1204.4,1204.3,0.09668953]
[1672640764073,11.00502429,1204.4,1204.2,3.0]
[1672640764235,4.35959455,1204.3,1204.2,3.0]
[1672640764436,9.35959455,1204.3,1204.2,2.99741307]
[1672640765348,4.35959455,1204.3,1204.2,2.99741307]
[1672640766445,9.35959455,1204.3,1204.2,2.99741307]
[1672640769398,9.30959455,1204.3,1204.2,2.99741307]
[1672640772580,4.30959455,1204.3,1204.2,2.99741307]
[1672640773476,8.7338511,1204.3,1204.2,2.99741307]
[1672640774521,8.7338511,1204.3,1204.2,11.30167307]
[1672640774942,8.7338511,1204.3,1204.2,2.99741307]
[1672640775157,9.35611179,1204.3,1204.2,2.99741307]
[1672640775417,5.0,1204.3,1204.2,2.99741307]
[1672640776223,9.35611179,1204.3,1204.2,2.99741307]
[1672640776877,5.0,1204.3,1204.2,2.99741307]
[1672640777417,8.73351268,1204.3,1204.2,2.99741307]
[1672640777585,5.0,1204.3,1204.2,2.99741307]
[1672640778220,9.35611179,1204.3,1204.2,2.99741307]
[1672640779621,4.35611179,1204.3,1204.2,2.99741307]
[1672640780361,5.0,1204.3,1204.2,2.99741307]
[1672640783730,8.73346265,1204.3,1204.2,28.20579589]
[1672640783936,8.73346265,1204.3,1204.2,21.95953589]
[1672640784153,5.0,1204.3,1204.2,22.05622542]
[1672640784461,8.11091209,1204.3,1204.2,18.421034]
[1672640784671,5.0,1204.3,1204.2,18.421034]
[1672640784980,8.11090929,1204.3,1204.2,18.421034]
[1672640785176,5.0,1204.3,1204.2,18.421034]
[1672640785573,8.111046,1204.3,1204.2,18.421034]
[1672640785786,5.0,1204.3,1204.2,18.421034]
[1672640785996,5.0,1204.3,1204.2,10.116774]
[1672640786457,3.79946265,1204.4,1204.3,3.0]
[1672640786778,3.79946265,1204.4,1204.3,10.14886114]
[1672640786779,8.79946265,1204.4,1204.3,10.14886114]
[1672640787291,5.066,1204.4,1204.3,10.14886114]
[1672640787661,9.42211179,1204.4,1204.3,10.14886114]
[1672640789601,9.42211179,1204.4,1204.3,3.0]
[1672640792513,9.42211179,1204.4,1204.2,3.09668953]
[1672640792702,8.73488491,1204.3,1204.2,6.09668953]
[1672640793382,8.73488491,1204.3,1204.2,6.09450708]
[1672640795481,9.35611179,1204.3,1204.2,6.09450708]
[1672640795860,5.0,1204.3,1204.2,6.09450708]
[1672640796324,9.35611179,1204.3,1204.2,6.09450708]
[1672640799159,5.0,1204.3,1204.2,6.09450708]
[1672640799737,9.35611179,1204.3,1204.2,6.09450708]
[1672640801981,4.35611179,1204.3,1204.2,6.09450708]
[1672640803139,9.35611179,1204.3,1204.2,6.09450708]
[1672640808778,5.0,1204.3,1204.2,6.09450708]
[1672640809115,4.42211179,1204.4,1204.2,6.09450708]
[1672640810094,5.0,1204.3,1204.2,6.09450708]
[1672640810278,10.29832297,1204.3,1204.2,3.09450708]
[1672640810491,11.32363547,1204.3,1204.2,0.09450708]
[1672640814551,11.32363547,1204.3,1204.2,0.09183049]
[1672640814917,11.94723547,1204.3,1204.2,0.09183049]
[1672640815392,11.32363547,1204.3,1204.2,0.09183049]
[1672640816234,14.95596209,1204.3,1204.2,0.09183049]
[1672640816402,18.68974387,1204.3,1204.2,0.09183049]
[1672640817079,15.05741725,1204.3,1204.2,0.09183049]
[1672640817284,18.68867648,1204.3,1204.2,0.09183049]
[1672640817498,17.65165369,1204.3,1204.2,0.09183049]
[1672640817651,17.6516481,1204.3,1204.2,0.09183049]
[1672640817862,12.50307041,1204.3,1204.2,0.09183049]
[1672640818124,16.65193155,1204.3,1204.2,0.09183049]
[1672640818330,22.83753762,1204.3,1204.2,0.09183049]
[1672640818521,27.38027839,1204.3,1204.2,0.09183049]
[1672640818824,31.01367994,1204.3,1204.2,0.09183049]
[1672640819030,27.38027839,1204.3,1204.2,0.09183049]
[1672640819641,31.01224847,1204.3,1204.2,0.09183049]
[1672640819856,27.38027839,1204.3,1204.2,0.09183049]
[1672640820101,31.01224847,1204.3,1204.2,0.09183049]
[1672640820309,26.34041278,1204.3,1204.2,0.09183049]
[1672640821391,29.97238655,1204.3,1204.2,0.09183049]
[1672640823471,26.34041278,1204.3,1204.2,0.09183049]
[1672640823796,26.34041278,1204.3,1203.9,3.0]
[1672640824010,3.73252835,1204.0,1203.9,3.0]
[1672640824223,3.96252835,1204.0,1203.9,3.0]
[1672640824585,3.96252835,1204.0,1203.8,3.34421431]
[1672640824851,3.11060026,1203.9,1203.8,6.34421431]
[1672640825025,8.11060026,1203.9,1203.8,6.34421431]
[1672640828690,10.59761748,1203.9,1203.8,6.34421431]
[1672640830428,7.48701722,1203.9,1203.8,6.34421431]
[1672640830808,2.48701722,1203.9,1203.8,6.34421431]
[1672640831432,5.59761748,1203.9,1203.8,6.34421431]
[1672640833009,10.59761748,1203.9,1203.8,6.34421431]
[1672640834904,10.59761748,1203.9,1203.8,6.34186325]
[1672640837227,8.11060026,1203.9,1203.8,6.09183049]
[1672640844483,3.11060026,1203.9,1203.8,6.09183049]
[1672640845540,8.11060026,1203.9,1203.8,6.09183049]
[1672640846226,8.96252835,1203.9,1203.8,6.09183049]
[1672640848605,8.96252835,1203.9,1203.8,6.34421431]
[1672640853083,3.96252835,1203.9,1203.8,6.34421431]
[1672640854129,8.96252835,1203.9,1203.8,6.34421431]
[1672640855340,9.58461641,1203.9,1203.8,6.34421431]
[1672640858821,9.58461641,1203.9,1203.8,3.34421431]
[1672640859038,9.59368695,1203.9,1203.8,3.24875969]
[1672640860382,11.13660969,1203.9,1203.8,3.24875969]
[1672640861033,9.59162793,1203.9,1203.8,6.24875969]
[1672640862755,9.59162793,1203.9,1203.8,3.24875969]
[1672640863665,9.59162793,1203.9,1203.8,6.24875969]
[1672640863872,9.59162793,1203.9,1203.8,3.24875969]
[1672640864542,9.59162793,1203.9,1203.8,6.24875969]
[1672640867284,4.59162793,1203.9,1203.8,6.24875969]
[1672640867427,9.59162793,1203.9,1203.8,6.24875969]
[1672640871694,8.96614561,1203.9,1203.8,22.86279969]
[1672640871842,9.59162793,1203.9,1203.8,6.24875969]
[1672640876521,5.22794098,1203.9,1203.8,6.24875969]
[1672640877039,9.59162793,1203.9,1203.8,6.24875969]
[1672640877848,4.59162793,1203.9,1203.8,6.24875969]
[1672640878080,4.59162793,1203.9,1203.8,6.34059018]
[1672640878499,0.22794098,1203.9,1203.8,6.34059018]
[1672640879051,5.22794098,1203.9,1203.8,6.34059018]
[1672640879567,9.59162793,1203.9,1203.8,6.34059018]
[1672640879884,5.22794098,1203.9,1203.8,6.34059018]
[1672640880931,9.59162793,1203.9,1203.8,6.34059018]
[1672640881153,5.22794098,1203.9,1203.8,6.34059018]
[1672640881458,9.59162793,1203.9,1203.8,6.34059018]
[1672640883458,9.59162793,1203.9,1203.8,6.3369698]
[1672640884831,4.59162793,1203.9,1203.8,6.3369698]
[1672640885780,9.59162793,1203.9,1203.8,6.3369698]
[1672640887397,9.58877127,1203.9,1203.8,6.3369698]
[1672640891863,4.58877127,1203.9,1203.8,6.3369698]
[1672640892867,9.58877127,1203.9,1203.8,6.3369698]
[1672640898780,4.58877127,1203.9,1203.8,6.3369698]
[1672640899254,4.59001214,1203.9,1203.8,6.3369698]
[1672640899829,9.59001214,1203.9,1203.8,6.3369698]
[1672640900621,9.59001214,1203.9,1203.8,3.3369698]
[1672640900931,9.59001432,1203.9,1203.8,6.3369698]
[1672640901106,5.22508432,1203.9,1203.8,6.3369698]
[1672640902461,10.37082478,1203.9,1203.8,6.3369698]
[1672640902672,5.22508432,1203.9,1203.8,6.3369698]
[1672640904670,9.59007402,1203.9,1203.8,6.3369698]
[1672640904933,9.59006257,1203.9,1203.8,6.3369698]
[1672640907103,5.22508432,1203.9,1203.8,6.3369698]
[1672640907569,10.37082478,1203.9,1203.8,3.3369698]
[1672640907926,10.37082478,1203.9,1203.8,6.33487067]
[1672640908619,5.37082478,1203.9,1203.8,6.33487067]
[1672640909563,10.37082478,1203.9,1203.8,6.33487067]
[1672640912393,5.22508432,1203.9,1203.8,6.33487067]
[1672640912850,10.37082478,1203.9,1203.8,6.33487067]
[1672640913143,5.22508432,1203.9,1203.8,6.33487067]
[1672640913334,5.22508432,1203.9,1203.8,3.33487067]
[1672640913335,10.37082478,1203.9,1203.8,3.33487067]
[1672640913950,10.37082478,1203.9,1203.8,3.24304018]
[1672640915083,10.37082478,1203.9,1203.8,6.24304018]
[1672640915552,10.37082478,1203.9,1203.8,3.24304018]
[1672640915770,10.37082478,1203.9,1203.8,6.24304018]
[1672640916142,10.37082478,1203.9,1203.8,3.24304018]
[1672640916693,10.37082478,1203.9,1203.8,6.24304018]
[1672640917709,10.37082478,1203.9,1203.8,3.24304018]
[1672640920188,5.37082478,1203.9,1203.8,3.24304018]
[1672640921129,10.37082478,1203.9,1203.8,3.24304018]
[1672640921447,12.09544787,1203.9,1203.8,3.24304018]
[1672640929939,12.09544787,1203.9,1203.8,3.19304018]
[1672640934515,7.09544787,1203.9,1203.8,3.19304018]
[1672640935041,9.15344787,1203.9,1203.8,3.19304018]
[1672640935425,14.15344787,1203.9,1203.8,3.19304018]
[1672640935757,14.1628704,1203.9,1203.8,3.19304018]
[1672640939747,14.1628704,1203.9,1203.8,2.94065636]
[1672640944250,9.00770741,1203.9,1203.8,2.94065636]
[1672640945918,9.16332879,1203.9,1203.8,2.94065636]
[1672640946552,4.00770741,1203.9,1203.8,2.94065636]
[1672640946916,9.00770741,1203.9,1203.8,2.94065636]
[1672640947811,14.16330226,1203.9,1203.8,2.94065636]
[1672640948341,9.00770741,1203.9,1203.8,2.94065636]
[1672640948656,14.16341271,1203.9,1203.8,2.94065636]
[1672640948843,9.00770741,1203.9,1203.8,2.94065636]
[1672640949031,15.19331348,1203.9,1203.8,2.94065636]
[1672640950017,9.00770741,1203.9,1203.8,2.94065636]
[1672640950207,14.16313623,1203.9,1203.8,2.94065636]
[1672640950462,10.38051314,1203.9,1203.8,5.94065636]
[1672640952511,5.22508432,1203.9,1203.8,5.94065636]
[1672640952696,9.58903285,1203.9,1203.8,5.94065636]
[1672640953124,5.22508432,1203.9,1203.8,5.94065636]
[1672640953333,5.0,1203.9,1203.8,5.94065636]
[1672640953589,9.36395304,1203.9,1203.8,5.94065636]
[1672640953798,9.36395304,1203.9,1203.8,5.93834252]
[1672640954710,9.59395304,1203.9,1203.8,5.93834252]
[1672640957695,5.23,1203.9,1203.8,5.93834252]
[1672640957897,9.59334304,1203.9,1203.8,5.93834252]
[1672640958517,5.23,1203.9,1203.8,5.93834252]
[1672640958809,0.23,1203.9,1203.8,5.93834252]
[1672640959899,5.23,1203.9,1203.8,5.93834252]
[1672640960051,9.59318184,1203.9,1203.8,5.93834252]
[1672640961523,5.23,1203.9,1203.8,5.93834252]
[1672640961732,9.59290597,1203.9,1203.8,5.93834252]
[1672640962376,10.38542882,1203.9,1203.8,5.93834252]
[1672640964735,5.23,1203.9,1203.8,5.93834252]
[1672640964885,5.22734146,1203.9,1203.8,5.93834252]
[1672640965361,5.22734146,1203.9,1203.8,6.03017301]
[1672640965895,0.22734146,1203.9,1203.8,6.03017301]
[1672640966831,5.22734146,1203.9,1203.8,6.03017301]
[1672640967262,5.22734146,1203.9,1203.8,5.93017301]
[1672640967776,10.38277028,1203.9,1203.8,5.93017301]
[1672640967948,5.22734146,1203.9,1203.8,5.93017301]
[1672640968510,9.59005895,1203.9,1203.8,5.93017301]
[1672640971012,11.07132301,1203.9,1203.8,5.93017301]
[1672640971232,12.48781906,1203.9,1203.8,5.93017301]
[1672640972069,11.00667028,1203.9,1203.8,5.93017301]
[1672640973294,5.85124146,1203.9,1203.8,5.93017301]
[1672640973501,11.00667028,1203.9,1203.8,5.93017301]
[1672640975370,5.85124146,1203.9,1203.8,5.93017301]
[1672640976420,5.22734146,1203.9,1203.8,5.93017301]
[1672640979458,5.22734146,1203.9,1203.8,2.93017301]
[1672640979676,10.38277028,1203.9,1203.8,2.93017301]
[1672640980157,10.38277028,1203.9,1203.8,5.93017301]
[1672640980506,12.10858791,1203.9,1203.8,2.93017301]
[1672640985308,12.10858791,1203.9,1203.8,2.83834252]
[1672640985708,7.10858791,1203.9,1203.8,2.83834252]
[1672640985913,7.10858791,1203.9,1203.8,5.83834252]
[1672640986898,12.10858791,1203.9,1203.8,2.83834252]
[1672640987326,12.10858791,1203.9,1203.8,5.83834252]
[1672640987869,12.10858791,1203.9,1203.8,2.83834252]
[1672640990090,12.10858791,1203.9,1203.8,5.83834252]
[1672640990395,10.38277028,1203.9,1203.8,2.83578968]
[1672640990558,10.38277028,1203.9,1203.8,5.83578968]
[1672640992866,5.38277028,1203.9,1203.8,5.83578968]
[1672640993719,10.38277028,1203.9,1203.8,5.83578968]
[1672640994673,10.38277028,1203.9,1203.8,5.92762017]
[1672640999864,5.38277028,1203.9,1203.8,5.92762017]
[1672641000849,10.38277028,1203.9,1203.8,5.92762017]
[1672641005756,9.59244571,1203.9,1203.8,5.92762017]
[1672641005935,9.36510425,1203.9,1203.8,5.92762017]
[1672641006107,5.0,1203.9,1203.8,5.92762017]
[1672641007477,5.23,1203.9,1203.8,5.92762017]
[1672641007739,9.59478946,1203.9,1203.8,5.92762017]
[1672641008056,5.23,1203.9,1203.8,5.92762017]
[1672641008418,10.38542882,1203.9,1203.8,5.92762017]
[1672641010785,10.38542882,1203.9,1203.8,5.92460368]
[1672641015279,5.38542882,1203.9,1203.8,5.92460368]
[1672641016156,10.38542882,1203.9,1203.8,5.92460368]
[1672641022221,5.38542882,1203.9,1203.8,5.92460368]
[1672641023253,10.38542882,1203.9,1203.8,5.92460368]
[1672641025615,5.23,1203.9,1203.8,5.92460368]
[1672641026723,10.38542882,1203.9,1203.8,5.92460368]
[1672641027040,10.38163767,1203.9,1203.8,5.92460368]
[1672641029207,5.38163767,1203.9,1203.8,5.92460368]
[1672641030332,10.38163767,1203.9,1203.8,5.92460368]
[1672641036376,5.38163767,1203.9,1203.8,5.92460368]
[1672641037054,5.38163767,1203.9,1203.8,2.92460368]
[1672641037243,10.38163767,1203.9,1203.8,5.83277319]
[1672641037433,10.38163767,1203.9,1203.8,5.90360368]
[1672641041546,10.38163767,1203.9,1203.8,2.90360368]
[1672641041723,10.38163767,1203.9,1203.8,5.90360368]
[1672641042714,10.38163767,1203.9,1203.8,2.90360368]
[1672641042927,13.69903929,1203.9,1203.8,2.90360368]
[1672641043134,15.77803929,1203.9,1203.8,2.90360368]
[1672641045974,15.77803929,1203.9,1203.8,2.83277319]
[1672641049665,15.77803929,1203.9,1203.8,2.83070047]
[1672641050881,9.59243322,1203.9,1203.8,2.83070047]
[1672641051451,15.77803929,1203.9,1203.8,2.83070047]
[1672641051718,15.15413929,1203.9,1203.8,2.83070047]
[1672641052239,19.30300043,1203.9,1203.8,2.83070047]
[1672641055613,17.22400043,1203.9,1203.8,2.83070047]
[1672641057196,11.03839436,1203.9,1203.8,2.83070047]
[1672641057581,17.22400043,1203.9,1203.8,2.83070047]
[1672641057780,11.03839436,1203.9,1203.8,2.83070047]
[1672641060052,17.22400043,1203.9,1203.8,2.83070047]
[1672641060970,11.03839436,1203.9,1203.8,2.83070047]
[1672641061189,12.04025442,1203.9,1203.8,2.83070047]
[1672641061505,12.04025442,1203.9,1203.8,5.83070047]
[1672641061506,10.37693005,1203.9,1203.8,5.83070047]
[1672641062074,10.37693005,1203.9,1203.8,2.83070047]
[1672641064167,10.37693005,1203.9,1203.8,5.83070047]
[1672641064442,5.37693005,1203.9,1203.8,2.83070047]
[1672641064757,5.37693005,1203.9,1203.8,5.83070047]
[1672641065116,10.37693005,1203.9,1203.8,2.83070047]
[1672641070389,10.37693005,1203.9,1203.8,2.82710031]
[1672641070601,15.60216366,1203.9,1203.8,2.82710031]
[1672641070810,16.63704853,1203.9,1203.8,2.82710031]
[1672641072305,20.78590967,1203.9,1203.8,2.82710031]
[1672641073579,14.6003036,1203.9,1203.8,2.82710031]
[1672641074156,20.7823043,1203.9,1203.8,2.82710031]
[1672641074373,20.7820053,1203.9,1203.8,2.82710031]
[1672641075366,22.37649502,1203.9,1203.7,864.35344843]
[1672641075572,13.92576114,1203.8,1203.7,864.35344843]
[1672641075794,15.58598257,1203.8,1203.7,864.35344843]
[1672641076832,15.58598257,1203.8,1203.7,867.35344843]
[1672641078191,21.75930294,1203.8,1203.7,867.35344843]
[1672641079164,56.13540294,1203.8,1203.7,867.35344843]
[1672641080267,54.05950007,1203.8,1203.7,867.35344843]
[1672641084500,54.05950007,1203.8,1203.7,864.35344843]
[1672641084716,48.51198257,1203.8,1203.7,864.35344843]
[1672641085957,54.68189591,1203.8,1203.7,864.35344843]
[1672641087297,48.51198257,1203.8,1203.7,864.35344843]
[1672641087578,54.68102309,1203.8,1203.7,864.35344843]
[1672641089091,19.68102309,1203.8,1203.7,864.35344843]
[1672641089930,19.68024742,1203.8,1203.7,864.35344843]
[1672641090143,13.51198257,1203.8,1203.7,864.35344843]
[1672641091452,19.6783072,1203.8,1203.7,864.35344843]
[1672641091662,13.51198257,1203.8,1203.7,864.35344843]
[1672641093221,19.67791475,1203.8,1203.7,864.35344843]
[1672641093858,13.51198257,1203.8,1203.7,864.35344843]
[1672641094334,15.58798257,1203.8,1203.7,864.35344843]
[1672641095554,15.58798257,1203.8,1203.7,856.09503256]
[1672641095908,13.50898257,1203.8,1203.7,856.04503256]
[1672641099578,12.88508257,1203.8,1203.7,856.04503256]
[1672641100164,48.50898257,1203.8,1203.7,856.04503256]
[1672641101145,52.65798257,1203.8,1203.7,856.04503256]
[1672641101363,50.57898257,1203.8,1203.7,856.04503256]
[1672641105227,49.95508257,1203.8,1203.7,856.04503256]
[1672641113212,49.95208257,1203.8,1203.7,856.04503256]
[1672641113891,57.16773602,1203.8,1203.7,856.04503256]
[1672641114906,57.41383098,1203.8,1203.7,856.04503256]
[1672641115263,57.41383098,1203.8,1203.7,855.89503256]
[1672641115474,57.41383098,1203.8,1203.7,847.6353948]
[1672641117997,50.19817753,1203.8,1203.7,847.6353948]
[1672641120314,57.19817753,1203.8,1203.7,847.6353948]
[1672641120471,54.87908257,1203.8,1203.7,847.6353948]
[1672641121254,49.87908257,1203.8,1203.7,847.6353948]
[1672641121404,54.87908257,1203.8,1203.7,847.6353948]
[1672641127031,62.09473602,1203.8,1203.7,847.6353948]
[1672641128237,64.17373602,1203.8,1203.7,847.6353948]
[1672641128456,59.41355822,1203.8,1203.7,847.6353948]
[1672641128779,64.41355822,1203.8,1203.7,847.6353948]
[1672641135447,64.41355822,1203.8,1203.7,839.3758037]
[1672641137448,59.41355822,1203.8,1203.7,839.3758037]
[1672641138397,62.33455822,1203.8,1203.7,839.3758037]
[1672641139746,65.03745822,1203.8,1203.7,839.3758037]
[1672641139964,57.82180477,1203.8,1203.7,839.3758037]
[1672641140116,65.03184825,1203.8,1203.7,839.3758037]
[1672641141432,64.40794825,1203.8,1203.7,839.3758037]
[1672641143124,53.04890477,1203.8,1203.7,839.3758037]
[1672641148545,9.38868334,1203.8,1203.7,839.3758037]
[1672641150520,15.90768334,1203.8,1203.7,839.3758037]
[1672641150777,16.13768334,1203.8,1203.7,839.3758037]
[1672641152665,9.61868334,1203.8,1203.7,839.3758037]
[1672641153203,16.90868334,1203.8,1203.7,839.3758037]
[1672641153517,23.03505602,1203.8,1203.7,839.3758037]
[1672641153676,15.74505602,1203.8,1203.7,839.3758037]
[1672641155619,15.74505602,1203.8,1203.7,831.11676225]
[1672641158983,15.51505602,1203.8,1203.7,831.11676225]
[1672641159198,9.38868334,1203.8,1203.7,831.11676225]
[1672641160527,9.61868334,1203.8,1203.7,831.11676225]
[1672641169697,4.61868334,1203.8,1203.7,831.11676225]
[1672641170080,39.61868334,1203.8,1203.7,831.11676225]
[1672641170544,44.61868334,1203.8,1203.7,831.11676225]
[1672641170765,49.08715167,1203.8,1203.7,831.11676225]
[1672641176624,44.08715167,1203.8,1203.7,831.11676225]
[1672641177041,49.08715167,1203.8,1203.7,831.11676225]
[1672641179443,49.08715167,1203.8,1203.7,831.11385984]
[1672641182557,49.30454949,1203.8,1203.7,831.11385984]
[1672641184558,44.30454949,1203.8,1203.7,831.11385984]
[1672641185518,49.30454949,1203.8,1203.7,831.11385984]
[1672641194108,14.07454949,1203.8,1203.7,831.11385984]
[1672641194298,9.60608116,1203.8,1203.7,831.11385984]
[1672641194509,44.60608116,1203.8,1203.7,831.11385984]
[1672641195518,44.83608116,1203.8,1203.7,831.11385984]
[1672641200449,44.83608116,1203.8,1203.7,831.11056968]
[1672641204782,39.83608116,1203.8,1203.7,831.11056968]
[1672641204998,44.54729362,1203.8,1203.7,831.11056968]
[1672641205836,49.54729362,1203.8,1203.7,831.11056968]
[1672641208221,51.62629362,1203.8,1203.7,831.11056968]
[1672641214654,46.62629362,1203.8,1203.7,831.11056968]
[1672641215091,44.54729362,1203.8,1203.7,831.11056968]
[1672641215616,49.54729362,1203.8,1203.7,831.11056968]
[1672641220135,56.7573371,1203.8,1203.7,831.11056968]
[1672641221815,51.7573371,1203.8,1203.7,831.11056968]
[1672641222382,44.54729362,1203.8,1203.7,831.11056968]
[1672641222597,49.54729362,1203.8,1203.7,831.11056968]
[1672641223085,14.54729362,1203.8,1203.7,831.11056968]
[1672641223783,14.54729362,1203.8,1203.7,831.1078271]
[1672641225501,14.54400434,1203.8,1203.7,831.1078271]
[1672641226964,21.75404782,1203.8,1203.7,831.1078271]
[1672641234039,56.75404782,1203.8,1203.7,831.1078271]
[1672641234397,51.75404782,1203.8,1203.7,831.1078271]
[1672641234611,56.75404782,1203.8,1203.7,831.1078271]
[1672641240803,51.75404782,1203.8,1203.7,831.1078271]
[1672641241842,56.75404782,1203.8,1203.7,831.1078271]
[1672641244113,49.54400434,1203.8,1203.7,831.1078271]
[1672641245514,51.60800434,1203.8,1203.7,831.1078271]
[1672641246597,58.81804782,1203.8,1203.7,831.1078271]
[1672641247657,58.81804782,1203.8,1203.7,831.10465674]
[1672641250177,53.81804782,1203.8,1203.7,831.10465674]
[1672641251225,58.81804782,1203.8,1203.7,831.10465674]
[1672641252639,51.60800434,1203.8,1203.7,831.10465674]
[1672641253159,58.81804782,1203.8,1203.7,831.10465674]
[1672641256621,23.81804782,1203.8,1203.7,831.10465674]
[1672641256936,11.89679188,1203.8,1203.7,831.10465674]
[1672641257109,46.89679188,1203.8,1203.7,831.10465674]
[1672641258725,46.89367073,1203.8,1203.7,831.10465674]
[1672641262820,41.89367073,1203.8,1203.7,831.10465674]
[1672641263922,46.89367073,1203.8,1203.7,831.10465674]